fUST/lending_fUST_20250601
["ID","MTS","AMOUNT","RATE_DAILY","PERIOD"]
[363555239,1748766644137,-500.0,0.00016712,2]
[363555240,1748766644147,-473.17,0.00016712,2]
[363555242,1748766644157,-430.0,0.00016712,2]
[363555243,1748766644166,-430.0,0.00016712,2]
[363555245,1748766644176,-430.0,0.00016712,2]
[363555247,1748766644185,-430.0,0.00016712,2]
[363555248,1748766644195,-430.0,0.00016712,2]
[363555251,1748766644204,-436.53858466,0.00016712,2]
[363555253,1748766644215,-430.0,0.00016712,2]
[363555255,1748766644224,-430.0,0.00016712,2]
[363555257,1748766644235,-430.0,0.00016712,2]
[363555259,1748766644244,-430.0,0.00016712,2]
[363555261,1748766644254,-430.0,0.00016712,2]
[363555263,1748766644263,-430.0,0.00016712,2]
[363555264,1748766644273,-430.0,0.00016712,2]
[363555265,1748766644283,-430.0,0.00016712,2]
[363555266,1748766644293,-737.76,0.00016712,2]
[363555267,1748766644303,-643.35,0.00016712,2]
[363555268,1748766644314,-522.03109554,0.00016712,2]
[363555269,1748766644324,-430.0,0.00016712,2]
[363555270,1748766644335,-1221.78,0.00016712,2]
[363555271,1748766644345,-549.12231042,0.00016712,2]
[363555272,1748766644355,-430.0,0.00016712,2]
[363555273,1748766644365,-636.06,0.00016712,2]
[363555274,1748766644377,-400.0,0.00016712,2]
[363555275,1748766644387,-430.0,0.00016712,2]
[363555276,1748766644397,-430.0,0.00016712,2]
[363555277,1748766644407,-837.66,0.00016712,2]
[363555278,1748766644417,-430.0,0.00016712,2]
[363555279,1748766644426,-415.96720372,0.00016712,2]
[363555280,1748766644436,-430.0,0.00016712,2]
[363555281,1748766644448,-430.0,0.00016712,2]
[363555282,1748766644459,-430.0,0.00016712,2]
[363555283,1748766644468,-401.82118775,0.00016712,2]
[363555284,1748766644478,-430.0,0.00016712,2]
[363555285,1748766644488,-430.0,0.00016712,2]
[363555286,1748766644499,-457.86,0.00016712,2]
[363555287,1748766644508,-430.0,0.00016712,2]
[363555288,1748766644518,-430.0,0.00016712,2]
[363555289,1748766644529,-430.0,0.00016712,2]
[363555290,1748766644539,-430.0,0.00016712,2]
[363555291,1748766644548,-430.0,0.00016712,2]
[363555292,1748766644558,-464.24,0.00016712,2]
[363555293,1748766644567,-223.61063108,0.00016712,2]
[363555294,1748766644577,-430.0,0.00016712,2]
[363555295,1748766644586,-430.0,0.00016712,2]
[363555296,1748766644596,-406.65823829,0.00016712,2]
[363555297,1748766644606,-430.0,0.00016712,2]
[363555298,1748766644616,-430.0,0.00016712,2]
[363555299,1748766644626,-430.0,0.00016712,2]
[363555300,1748766644636,-430.0,0.00016712,2]
[363555301,1748766644645,-342.95305357,0.00016712,2]
[363555302,1748766644655,-430.0,0.00016712,2]
[363555303,1748766644665,-430.0,0.00016712,2]
[363555304,1748766644675,-430.0,0.00016712,2]
[363555305,1748766644684,-430.0,0.00016712,2]
[363555306,1748766644693,-430.0,0.00016712,2]
[363555307,1748766644703,-414.46421793,0.00016712,2]
[363555308,1748766644712,-430.0,0.00016712,2]
[363555309,1748766644722,-430.0,0.00016712,2]
[363555310,1748766644731,-430.0,0.00016712,2]
[363555312,1748766644741,-430.0,0.00016712,2]
[363555313,1748766644750,-430.0,0.00016712,2]
[363555315,1748766644760,-675.77,0.00016712,2]
[363555317,1748766644770,-258.54120297,0.00016712,2]
[363555319,1748766644780,-430.0,0.00016712,2]
[363555322,1748766644790,-222.12999999,0.00016712,2]
[363555323,1748766644800,-573.2572686,0.00016712,2]
[363555325,1748766644810,-430.0,0.00016712,2]
[363555328,1748766644821,-500.0,0.00016712,2]
[363555330,1748766644831,-430.0,0.00016712,2]
[363555332,1748766644840,-430.0,0.00016712,2]
[363555334,1748766644850,-430.0,0.00016712,2]
[363555336,1748766644860,-430.0,0.00016712,2]
[363555338,1748766644869,-430.0,0.00016712,2]
[363555339,1748766644878,-430.0,0.00016712,2]
[363555341,1748766644888,-173.34552926,0.00016712,2]
[363555343,1748766644897,-430.0,0.00016712,2]
[363555345,1748766644906,-430.0,0.00016712,2]
[363555347,1748766644916,-430.0,0.00016712,2]
[363555349,1748766644926,-430.0,0.00016712,2]
[363555351,1748766644935,-430.0,0.00016712,2]
[363555353,1748766644945,-430.0,0.00016712,2]
[363555355,1748766644955,-430.0,0.00016712,2]
[363555357,1748766644964,-430.0,0.00016712,2]
[363555359,1748766644974,-430.0,0.00016712,2]
[363555361,1748766644983,-430.0,0.00016712,2]
[363555363,1748766644992,-430.0,0.00016712,2]
[363555365,1748766645001,-430.0,0.00016712,2]
[363555367,1748766645010,-430.0,0.00016712,2]
[363555369,1748766645019,-430.0,0.00016712,2]
[363555371,1748766645028,-430.0,0.00016712,2]
[363555373,1748766645038,-430.0,0.00016712,2]
[363555374,1748766645049,-568.64,0.00016712,2]
[363555375,1748766645059,-430.0,0.00016712,2]
[363555376,1748766645069,-430.0,0.00016712,2]
[363555377,1748766645079,-430.0,0.00016712,2]
[363555378,1748766645088,-430.0,0.00016712,2]
[363555379,1748766645098,-430.0,0.00016712,2]
[363555380,1748766645108,-430.0,0.00016712,2]
[363555381,1748766645118,-430.0,0.00016712,2]
[363555382,1748766645127,-430.0,0.00016712,2]
[363555383,1748766645138,-756.62,0.00016712,2]
[363555384,1748766645147,-726.96856134,0.00016712,2]
[363555385,1748766645157,-430.0,0.00016712,2]
[363555386,1748766645167,-430.0,0.00016712,2]
[363555387,1748766645176,-151.0,0.00016712,2]
[363555388,1748766645186,-430.0,0.00016712,2]
[363555389,1748766645202,-430.0,0.00016712,2]
[363555390,1748766645217,-430.0,0.00016712,2]
[363555391,1748766645232,-1231.91,0.00016712,2]
[363555394,1748766645245,-430.0,0.00016712,2]
[363555396,1748766645257,-430.0,0.00016712,2]
[363555398,1748766645272,-430.0,0.00016712,2]
[363555401,1748766645284,-430.0,0.00016712,2]
[363555403,1748766645297,-430.0,0.00016712,2]
[363555405,1748766645310,-430.0,0.00016712,2]
[363555408,1748766645326,-600.45,0.00016712,2]
[363555410,1748766645340,-430.0,0.00016712,2]
[363555412,1748766645355,-430.0,0.00016712,2]
[363555415,1748766645368,-430.0,0.00016712,2]
[363555417,1748766645381,-430.0,0.00016712,2]
[363555421,1748766645396,-430.0,0.00016712,2]
[363555424,1748766645409,-430.0,0.00016712,2]
[363555426,1748766645422,-477.19,0.00016712,2]
[363555428,1748766645436,-430.0,0.00016712,2]
[363555431,1748766645452,-16754.49,0.00016712,2]
[363555433,1748766645465,-430.0,0.00016712,2]
[363555435,1748766645476,-430.0,0.00016712,2]
[363555437,1748766645487,-430.0,0.00016712,2]
[363555439,1748766645500,-155.030959,0.00016712,2]
[363555442,1748766645512,-1435.85,0.00016712,2]
[363555444,1748766645527,-430.0,0.00016712,2]
[363555447,1748766645541,-430.0,0.00016712,2]
[363555449,1748766645554,-430.0,0.00016712,2]
[363555451,1748766645568,-873.58,0.00016712,2]
[363555454,1748766645582,-1473.51,0.00016712,2]
[363555456,1748766645596,-430.0,0.00016712,2]
[363555459,1748766645610,-509.07937887,0.00016712,2]
[363555461,1748766645621,-153.68993586,0.000168,2]
[363555463,1748766645631,-351.4500182,0.00016864,2]
[363555465,1748766645644,-2857.8,0.000169,2]
[363555467,1748766645656,-2857.8,0.00016921,2]
[363555470,1748766645671,-151.0,0.00016985,2]
[363555472,1748766645684,-204.009821,0.00016985,2]
[363555474,1748766645696,-204.009821,0.00016985,2]
[363555476,1748766645708,-170.667214,0.00016985,2]
[363555479,1748766645720,-170.667214,0.00016985,2]
[363555481,1748766645733,-151.0,0.00016985,2]
[363555483,1748766645746,-876.7535,0.00016985,2]
[363555486,1748766645757,-876.7535,0.00016985,2]
[363555488,1748766645770,-849.927027,0.00016986,2]
[363555490,1748766645782,-849.927027,0.00016986,2]
[363555493,1748766645794,-159.034161,0.00016986,2]
[363555495,1748766645805,-159.034161,0.00016986,2]
[363555497,1748766645816,-151.0,0.00016986,2]
[363555499,1748766645828,-151.0,0.00016986,2]
[363555501,1748766645840,-152.97156,0.00016986,2]
[363555503,1748766645852,-151.0,0.00016986,2]
[363555506,1748766645863,-169.111676,0.00016986,2]
[363555508,1748766645874,-204.009821,0.00016986,2]
[363555510,1748766645885,-204.009821,0.00016986,2]
[363555512,1748766645897,-170.667214,0.00016986,2]
[363555514,1748766645908,-170.667214,0.00016986,2]
[363555516,1748766645920,-151.0,0.00016986,2]
[363555519,1748766645931,-151.0,0.00016986,2]
[363555521,1748766645943,-151.0,0.00016986,2]
[363555523,1748766645956,-151.0,0.00016986,2]
[363555525,1748766645967,-151.0,0.00016986,2]
[363555527,1748766645979,-151.810814,0.00016986,2]
[363555529,1748766645990,-151.810814,0.00016986,2]
[363555532,1748766646002,-151.810814,0.00016986,2]
[363555534,1748766646014,-151.810814,0.00016986,2]
[363555536,1748766646026,-876.7535,0.00016986,2]
[363555538,1748766646038,-876.7535,0.00016986,2]
[363555541,1748766646049,-151.0,0.00016986,2]
[363555543,1748766646062,-151.0,0.00016986,2]
[363555545,1748766646073,-151.0,0.00016986,2]
[363555547,1748766646084,-151.0,0.00016986,2]
[363555549,1748766646095,-562.438802,0.00016986,2]
[363555552,1748766646107,-562.438802,0.00016986,2]
[363555554,1748766646119,-562.438802,0.00016986,2]
[363555556,1748766646131,-562.438802,0.00016986,2]
[363555558,1748766646143,-430.0,0.00016986,2]
[363555560,1748766646154,-430.0,0.00016986,2]
[363555562,1748766646166,-430.0,0.00016986,2]
[363555565,1748766646178,-363.93507252,0.00016986,2]
[363555567,1748766646189,-430.0,0.00016986,2]
[363555569,1748766646200,-430.0,0.00016986,2]
[363555571,1748766646211,-430.0,0.00016986,2]
[363555573,1748766646223,-430.0,0.00016986,2]
[363555576,1748766646234,-430.0,0.00016986,2]
[363555577,1748766646246,-430.0,0.00016986,2]
[363555578,1748766646257,-430.0,0.00016986,2]
[363555580,1748766646269,-417.67945617,0.00016986,2]
[363555582,1748766646280,-177.476054,0.00016986,2]
[363555585,1748766646292,-177.476054,0.00016986,2]
[363555587,1748766646303,-177.476054,0.00016986,2]
[363555589,1748766646315,-177.476054,0.00016986,2]
[363555591,1748766646327,-430.0,0.00016986,2]
[363555594,1748766646339,-430.0,0.00016986,2]
[363555596,1748766646351,-367.25208483,0.00016986,2]
[363555632,1748766646704,-62.74791517,0.00016986,2]
[363555635,1748766646714,-306.38224862,0.00016986,2]
[363555636,1748766646724,-213.84600202,0.00016986,2]
[363555639,1748766646735,-430.0,0.00016986,2]
[363555641,1748766646745,-430.0,0.00016986,2]
[363555643,1748766646754,-434.18,0.00016986,2]
[363555645,1748766646763,-450.0,0.00016986,2]
[363555647,1748766646773,-430.0,0.00016986,2]
[363555649,1748766646782,-2.08277355,0.00016986,2]
[363555651,1748766646794,-427.91722645,0.00016986,2]
[363555653,1748766646804,-430.0,0.00016986,2]
[363555654,1748766646814,-430.0,0.00016986,2]
[363555656,1748766646823,-674.12,0.00016986,2]
[363555658,1748766646832,-382.63328083,0.00016986,2]
[363555661,1748766646843,-47.36671917,0.00016986,2]
[363555663,1748766646854,-430.0,0.00016986,2]
[363555665,1748766646864,-430.0,0.00016986,2]
[363555667,1748766646874,-430.0,0.00016986,2]
[363555669,1748766646884,-430.0,0.00016986,2]
[363555671,1748766646894,-430.0,0.00016986,2]
[363555673,1748766646904,-430.0,0.00016986,2]
[363555675,1748766646913,-430.0,0.00016986,2]
[363555677,1748766646923,-430.0,0.00016986,2]
[363555679,1748766646932,-430.0,0.00016986,2]
[363555681,1748766646941,-430.0,0.00016986,2]
[363555683,1748766646950,-213.466539,0.00016986,2]
[363555685,1748766646959,-430.0,0.00016986,2]
[363555687,1748766646969,-430.0,0.00016986,2]
[363555689,1748766646978,-430.0,0.00016986,2]
[363555691,1748766646988,-514.129799,0.00016986,2]
[363555693,1748766646998,-430.0,0.00016986,2]
[363555695,1748766647007,-514.129799,0.00016986,2]
[363555697,1748766647017,-430.0,0.00016986,2]
[363555699,1748766647026,-151.0,0.00016986,2]
[363555701,1748766647036,-151.0,0.00016986,2]
[363555703,1748766647045,-345.298026,0.00016986,2]
[363555705,1748766647054,-345.298026,0.00016986,2]
[363555707,1748766647064,-430.0,0.00016986,2]
[363555709,1748766647073,-430.0,0.00016986,2]
[363555711,1748766647082,-468.82072898,0.00016986,2]
[363555713,1748766647092,-272.859651,0.00016986,2]
[363555715,1748766647102,-430.0,0.00016986,2]
[363555717,1748766647111,-462.96306544,0.00016986,2]
[363555719,1748766647122,-272.859651,0.00016986,2]
[363555721,1748766647132,-430.0,0.00016986,2]
[363555723,1748766647142,-402.50335051,0.00016986,2]
[363555725,1748766647153,-430.0,0.00016986,2]
[363555727,1748766647163,-430.0,0.00016986,2]
[363555729,1748766647172,-188.26273572,0.00016986,2]
[363555732,1748766647185,-241.73726428,0.00016986,2]
[363555734,1748766647195,-513.94875728,0.00016986,2]
[363555736,1748766647204,-430.0,0.00016986,2]
[363555738,1748766647213,-400.0,0.00016986,2]
[363555740,1748766647225,-426.80130533,0.00016986,2]
[363555742,1748766647234,-251.20467988,0.00016986,2]
[363555744,1748766647244,-430.0,0.00016986,2]
[363555746,1748766647253,-430.0,0.00016986,2]
[363555748,1748766647261,-430.0,0.00016986,2]
[363555750,1748766647271,-430.0,0.00016986,2]
[363555752,1748766647280,-430.0,0.00016986,2]
[363555754,1748766647290,-430.0,0.00016986,2]
[363555756,1748766647299,-430.0,0.00016986,2]
[363555758,1748766647309,-737.76,0.00016986,2]
[363555760,1748766647318,-643.35,0.00016986,2]
[363555762,1748766647327,-430.0,0.00016986,2]
[363555764,1748766647338,-1221.78,0.00016986,2]
[363555765,1748766647347,-430.0,0.00016986,2]
[363555767,1748766647357,-636.06,0.00016986,2]
[363555769,1748766647366,-430.0,0.00016986,2]
[363555771,1748766647375,-430.0,0.00016986,2]
[363555773,1748766647383,-837.66,0.00016986,2]
[363555775,1748766647392,-430.0,0.00016986,2]
[363555777,1748766647400,-430.0,0.00016986,2]
[363555779,1748766647409,-457.86,0.00016986,2]
[363555781,1748766647418,-378.99850081,0.00016986,2]
[363555783,1748766647426,-430.0,0.00016986,2]
[363555785,1748766647436,-430.0,0.00016986,2]
[363555787,1748766647447,-464.24,0.00016986,2]
[363555789,1748766647458,-430.0,0.00016986,2]
[363555791,1748766647468,-430.0,0.00016986,2]
[363555793,1748766647477,-430.0,0.00016986,2]
[363555795,1748766647487,-430.0,0.00016986,2]
[363555797,1748766647497,-430.0,0.00016986,2]
[363555799,1748766647507,-430.0,0.00016986,2]
[363555801,1748766647517,-468.41870547,0.00016986,2]
[363555803,1748766647530,-430.0,0.00016986,2]
[363555805,1748766647541,-430.0,0.00016986,2]
[363555807,1748766647550,-430.0,0.00016986,2]
[363555809,1748766647560,-487.13,0.00016986,2]
[363555811,1748766647570,-430.0,0.00016986,2]
[363555813,1748766647579,-430.0,0.00016986,2]
[363555815,1748766647589,-430.0,0.00016986,2]
[363555817,1748766647599,-430.0,0.00016986,2]
[363555819,1748766647611,-430.0,0.00016986,2]
[363555820,1748766647622,-675.77,0.00016986,2]
[363555821,1748766647634,-430.0,0.00016986,2]
[363555822,1748766647647,-437.93623587,0.00016986,2]
[363555823,1748766647657,-223.53114285,0.00016986,2]
[363555824,1748766647666,-178.15013796,0.00016986,2]
[363555826,1748766647675,-430.0,0.00016986,2]
[363555828,1748766647684,-430.0,0.00016986,2]
[363555830,1748766647693,-151.459583,0.00016986,2]
[363555832,1748766647703,-430.0,0.00016986,2]
[363555834,1748766647713,-430.0,0.00016986,2]
[363555836,1748766647723,-430.0,0.00016986,2]
[363555838,1748766647732,-430.0,0.00016986,2]
[363555840,1748766647742,-430.0,0.00016986,2]
[363555842,1748766647751,-400.1512935,0.00016986,2]
[363555844,1748766647760,-226.976908,0.00016986,2]
[363555846,1748766647769,-226.976908,0.00016986,2]
[363555848,1748766647780,-430.0,0.00016986,2]
[363555850,1748766647790,-430.0,0.00016986,2]
[363555852,1748766647799,-450.0,0.00016986,2]
[363555854,1748766647808,-430.0,0.00016986,2]
[363555856,1748766647818,-524.37848364,0.00016986,2]
[363555858,1748766647827,-430.0,0.00016986,2]
[363555860,1748766647837,-568.64,0.00016986,2]
[363555863,1748766647847,-430.0,0.00016986,2]
[363555865,1748766647857,-430.0,0.00016986,2]
[363555867,1748766647866,-430.0,0.00016986,2]
[363555869,1748766647876,-430.0,0.00016986,2]
[363555871,1748766647885,-756.62,0.00016986,2]
[363555873,1748766647895,-151.0,0.00016986,2]
[363555875,1748766647904,-430.0,0.00016986,2]
[363555877,1748766647914,-430.0,0.00016986,2]
[363555879,1748766647924,-151.939034,0.00016986,2]
[363555881,1748766647934,-430.0,0.00016986,2]
[363555883,1748766647944,-430.0,0.00016986,2]
[363555885,1748766647953,-430.0,0.00016986,2]
[363555887,1748766647962,-163.95586765,0.00016986,2]
[363555890,1748766647979,-1067.95413235,0.00016986,2]
[363555892,1748766647988,-430.0,0.00016986,2]
[363555894,1748766647998,-430.0,0.00016986,2]
[363555896,1748766648007,-171.26047132,0.00016986,2]
[363555927,1748766648299,-300.0,0.00016437,2]
[363555929,1748766648310,-430.0,0.00016438,2]
[363555931,1748766648319,-430.0,0.00016438,2]
[363555933,1748766648329,-434.56068407,0.00016438,2]
[363555935,1748766648339,-430.0,0.00016712,2]
[363555937,1748766648348,-258.73952868,0.00016986,2]
[363555939,1748766648358,-496.54650798,0.00016986,2]
[363555941,1748766648367,-430.0,0.00016986,2]
[363555943,1748766648376,-430.0,0.00016986,2]
[363555945,1748766648386,-600.45,0.00016986,2]
[363555947,1748766648395,-430.0,0.00016986,2]
[363555949,1748766648404,-430.0,0.00016986,2]
[363555951,1748766648414,-430.0,0.00016986,2]
[363555953,1748766648423,-430.0,0.00016986,2]
[363555955,1748766648433,-430.0,0.00016986,2]
[363555957,1748766648443,-477.19,0.00016986,2]
[363555959,1748766648455,-16754.49,0.00016986,2]
[363555961,1748766648465,-430.0,0.00016986,2]
[363555963,1748766648475,-1435.85,0.00016986,2]
[363555965,1748766648486,-430.0,0.00016986,2]
[363555967,1748766648497,-430.0,0.00016986,2]
[363555969,1748766648507,-873.58,0.00016986,2]
[363555971,1748766648516,-1473.51,0.00016986,2]
[363555973,1748766648526,-430.0,0.00016986,2]
[363555975,1748766648535,-430.0,0.00016986,2]
[363555977,1748766648545,-151.0,0.00017076,2]
[363555979,1748766648554,-181.06538708,0.00017076,2]
[363555981,1748766648563,-500.0,0.00017122,2]
[363555983,1748766648573,-481.56516768,0.00017122,2]
[363555985,1748766648583,-519.0356457,0.00017123,2]
[363555987,1748766648593,-501.75675153,0.00017123,2]
[363555989,1748766648602,-500.0,0.00017141,2]
[363555991,1748766648612,-151.0,0.00017141,2]
[363555993,1748766648622,-500.0,0.00017153,2]
[363555995,1748766648632,-500.0,0.00017158,2]
[363555997,1748766648642,-160.0,0.00017171,2]
[363555999,1748766648651,-842.5625,0.00017171,2]
[363556001,1748766648660,-160.0,0.00017171,2]
[363556003,1748766648669,-160.0,0.00017171,2]
[363556005,1748766648679,-212.80060342,0.00017171,2]
[363556007,1748766648689,-423.51412927,0.00017171,2]
[363556009,1748766648699,-229.3709046,0.00017171,2]
[363556011,1748766648708,-160.0,0.00017171,2]
[363556014,1748766648719,-160.0,0.00017171,2]
[363556016,1748766648729,-160.0,0.00017171,2]
[363556018,1748766648738,-12666.87825251,0.00017173,2]
[363556020,1748766648748,-314.88098828,0.00017173,2]
[363556021,1748766648758,-160.0,0.00017173,2]
[363556024,1748766648768,-500.0,0.00017179,2]
[363556026,1748766648778,-500.02626186,0.00017179,2]
[363556027,1748766648787,-177.476054,0.00017201,2]
[363556029,1748766648797,-177.476054,0.00017201,2]
[363556032,1748766648807,-849.927027,0.00017213,2]
[363556034,1748766648817,-849.927027,0.00017213,2]
[363556035,1748766648826,-151.0,0.00017213,2]
[363556038,1748766648836,-204.009821,0.00017213,2]
[363556040,1748766648846,-204.009821,0.00017213,2]
[363556042,1748766648856,-170.667214,0.00017213,2]
[363556044,1748766648867,-170.667214,0.00017213,2]
[363556046,1748766648881,-151.0,0.00017213,2]
[363556048,1748766648893,-151.0,0.00017213,2]
[363556050,1748766648904,-151.0,0.00017213,2]
[363556052,1748766648914,-151.810814,0.00017213,2]
[363556054,1748766648923,-151.810814,0.00017213,2]
[363556056,1748766648934,-876.7535,0.00017213,2]
[363556058,1748766648947,-876.7535,0.00017213,2]
[363556060,1748766648959,-151.0,0.00017213,2]
[363556062,1748766648970,-151.0,0.00017213,2]
[363556064,1748766648980,-562.438802,0.00017213,2]
[363556066,1748766648989,-562.438802,0.00017213,2]
[363556068,1748766648999,-151.0,0.00017213,2]
[363556070,1748766649009,-1919.086013,0.00017213,2]
[363556072,1748766649019,-1919.086013,0.00017213,2]
[363556074,1748766649030,-216.935745,0.00017213,2]
[363556076,1748766649039,-216.935745,0.00017213,2]
[363556078,1748766649050,-151.0,0.00017213,2]
[363556080,1748766649060,-151.0,0.00017213,2]
[363556083,1748766649071,-151.0,0.00017213,2]
[363556085,1748766649080,-345.298026,0.00017213,2]
[363556086,1748766649091,-345.298026,0.00017213,2]
[363556089,1748766649101,-12666.87825251,0.00017213,3]
[363556090,1748766649111,-842.5625,0.00017213,3]
[363556092,1748766649121,-314.88098828,0.00017213,3]
[363556095,1748766649132,-212.80060342,0.00017213,3]
[363556097,1748766649142,-151.0,0.00017214,2]
[363556099,1748766649152,-151.0,0.00017214,2]
[363556101,1748766649161,-151.0,0.0001726,2]
[363556103,1748766649173,-151.0,0.0001726,2]
[363556105,1748766649183,-737.576888,0.0001726,2]
[363556107,1748766649193,-737.576888,0.0001726,2]
[363556109,1748766649202,-151.0,0.0001726,2]
[363556111,1748766649211,-151.0,0.0001726,2]
[363556113,1748766649221,-849.927027,0.0001726,2]
[363556115,1748766649230,-849.927027,0.0001726,2]
[363556117,1748766649240,-159.034161,0.0001726,2]
[363556119,1748766649249,-159.034161,0.0001726,2]
[363556121,1748766649259,-151.0,0.0001726,2]
[363556123,1748766649269,-151.0,0.0001726,2]
[363556125,1748766649279,-151.0,0.0001726,2]
[363556127,1748766649287,-151.0,0.0001726,2]
[363556129,1748766649298,-204.009821,0.0001726,2]
[363556131,1748766649308,-204.009821,0.0001726,2]
[363556133,1748766649318,-170.667214,0.0001726,2]
[363556135,1748766649327,-170.667214,0.0001726,2]
[363556137,1748766649337,-151.565035,0.0001726,2]
[363556139,1748766649346,-151.0,0.0001726,2]
[363556141,1748766649356,-151.0,0.0001726,2]
[363556142,1748766649366,-151.810814,0.0001726,2]
[363556143,1748766649376,-151.810814,0.0001726,2]
[363556144,1748766649385,-876.7535,0.0001726,2]
[363556145,1748766649396,-876.7535,0.0001726,2]
[363556146,1748766649406,-151.0,0.0001726,2]
[363556147,1748766649415,-151.0,0.0001726,2]
[363556148,1748766649425,-562.438802,0.0001726,2]
[363556149,1748766649434,-562.438802,0.0001726,2]
[363556150,1748766649446,-151.0,0.0001726,2]
[363556151,1748766649457,-2119.883618,0.0001726,2]
[363556152,1748766649466,-430.0,0.0001726,2]
[363556153,1748766649475,-2119.883618,0.0001726,2]
[363556154,1748766649487,-151.0,0.0001726,2]
[363556155,1748766649496,-254.3847957,0.0001726,2]
[363556156,1748766649506,-499.05685102,0.0001726,2]
[363556157,1748766649515,-430.0,0.0001726,2]
[363556158,1748766649525,-430.0,0.0001726,2]
[363556159,1748766649535,-1919.086013,0.0001726,2]
[363556160,1748766649544,-1919.086013,0.0001726,2]
[363556161,1748766649554,-430.0,0.0001726,2]
[363556162,1748766649685,-430.0,0.0001726,2]
[363556163,1748766649696,-255.97144,0.0001726,2]
[363556164,1748766649706,-255.97144,0.0001726,2]
[363556165,1748766649717,-479.273912,0.0001726,2]
[363556166,1748766649727,-479.273912,0.0001726,2]
[363556167,1748766649737,-177.476054,0.0001726,2]
[363556168,1748766649746,-177.476054,0.0001726,2]
[363556169,1748766649755,-177.476054,0.0001726,2]
[363556170,1748766649765,-177.476054,0.0001726,2]
[363556171,1748766649775,-430.0,0.0001726,2]
[363556172,1748766649785,-430.0,0.0001726,2]
[363556173,1748766649795,-415.33573,0.0001726,2]
[363556174,1748766649805,-415.33573,0.0001726,2]
[363556175,1748766649814,-430.0,0.0001726,2]
[363556176,1748766649824,-239.79950307,0.0001726,2]
[363556177,1748766649833,-210.0,0.0001726,2]
[363556178,1748766649842,-430.0,0.0001726,2]
[363556179,1748766649852,-489.40458389,0.0001726,2]
[363556180,1748766649862,-380.540689,0.0001726,2]
[363556181,1748766649872,-493.13815954,0.0001726,2]
[363556182,1748766649881,-380.540689,0.0001726,2]
[363556183,1748766649892,-674.12,0.0001726,2]
[363556184,1748766649902,-430.0,0.0001726,2]
[363556185,1748766649913,-430.0,0.0001726,2]
[363556186,1748766649923,-263.80560514,0.0001726,2]
[363556187,1748766649933,-444.76230826,0.0001726,2]
[363556188,1748766649942,-430.0,0.0001726,2]
[363556189,1748766649952,-430.0,0.0001726,2]
[363556190,1748766649962,-430.0,0.0001726,2]
[363556191,1748766649972,-430.0,0.0001726,2]
[363556192,1748766649982,-430.0,0.0001726,2]
[363556193,1748766649992,-430.0,0.0001726,2]
[363556194,1748766650002,-430.0,0.0001726,2]
[363556195,1748766650012,-514.129799,0.0001726,2]
[363556196,1748766650022,-430.0,0.0001726,2]
[363556197,1748766650033,-514.129799,0.0001726,2]
[363556198,1748766650042,-430.0,0.0001726,2]